[Event "*** Titled Tuesday Blitz"]
[Site "Chess.com"]
[Date "2020.10.20"]
[Round "8"]
[White "ciucas1892"]
[Black "MatyChess1"]
[Result "0-1"]
[WhiteElo "2362"]
[BlackElo "2553"]
[TimeControl "180+1"]
[EndTime "11:36:40 PDT"]
[Termination "MatyChess1 won by checkmate"]

1. d4 {[%clk 0:03:00.9]} 1... Nf6 {[%clk 0:02:59.2]} 2. Nf3 {[%clk 0:03:00.7]}
2... e6 {[%clk 0:02:58.8]} 3. c4 {[%clk 0:02:58.9]} 3... d5 {[%clk 0:02:58.6]}
4. Nc3 {[%clk 0:02:58.7]} 4... Bb4 {[%clk 0:02:59.1]} 5. Qa4+ {[%clk 0:02:50.2]}
5... Nc6 {[%clk 0:02:58.7]} 6. e3 {[%clk 0:02:50.6]} 6... O-O {[%clk 0:02:57.3]}
7. Bd3 {[%clk 0:02:47.4]} 7... a6 {[%clk 0:02:56.1]} 8. c5 {[%clk 0:02:41.5]}
8... Bd7 {[%clk 0:02:43.8]} 9. O-O {[%clk 0:02:22.7]} 9... b6 {[%clk 0:02:40.1]}
10. cxb6 {[%clk 0:02:18.4]} 10... cxb6 {[%clk 0:02:35]} 11. a3 {[%clk
0:02:09.6]} 11... Bxc3 {[%clk 0:02:31.4]} 12. bxc3 {[%clk 0:02:10.5]} 12... Ne5
{[%clk 0:02:32]} 13. Qd1 {[%clk 0:02:09.5]} 13... Nxd3 {[%clk 0:02:32.4]} 14.
Qxd3 {[%clk 0:02:10.2]} 14... Bb5 {[%clk 0:02:33.2]} 15. Qd1 {[%clk 0:02:04.9]}
15... Bxf1 {[%clk 0:02:34.1]} 16. Qxf1 {[%clk 0:02:05.5]} 16... Qc7 {[%clk
0:02:33.9]} 17. Bd2 {[%clk 0:02:05.3]} 17... Ne4 {[%clk 0:02:31.5]} 18. Be1
{[%clk 0:02:02.7]} 18... Rfc8 {[%clk 0:02:29.9]} 19. Ne5 {[%clk 0:02:01.3]}
19... Nxc3 {[%clk 0:02:24.3]} 20. f3 {[%clk 0:01:47.8]} 20... Nb5 {[%clk
0:02:22.1]} 21. Bg3 {[%clk 0:01:46.9]} 21... Qc3 {[%clk 0:02:15.2]} 22. a4
{[%clk 0:01:46.6]} 22... Nd6 {[%clk 0:02:06.6]} 23. Rb1 {[%clk 0:01:30.1]} 23...
b5 {[%clk 0:01:54.1]} 24. axb5 {[%clk 0:00:59.5]} 24... axb5 {[%clk 0:01:53.9]}
25. Bf4 {[%clk 0:00:54.4]} 25... b4 {[%clk 0:01:47.6]} 26. h4 {[%clk 0:00:50.5]}
26... b3 {[%clk 0:01:41.2]} 27. Qf2 {[%clk 0:00:49.7]} 27... Nf5 {[%clk
0:01:25.3]} 28. e4 {[%clk 0:00:40]} 28... Ra2 {[%clk 0:01:23.8]} 29. Qf1 {[%clk
0:00:25.3]} 29... dxe4 {[%clk 0:01:22.7]} 30. fxe4 {[%clk 0:00:25.2]} 30...
Qxd4+ {[%clk 0:01:21.8]} 31. Kh2 {[%clk 0:00:20.3]} 31... Nxh4 {[%clk
0:01:14.2]} 32. Bg3 {[%clk 0:00:06.4]} 32... Rxg2+ {[%clk 0:01:03.7]} 33. Kh3
{[%clk 0:00:06.2]} 33... Rxg3+ {[%clk 0:01:02.6]} 34. Kxg3 {[%clk 0:00:07.1]}
34... Qxe5+ {[%clk 0:01:02.3]} 35. Kxh4 {[%clk 0:00:07.5]} 35... Qxe4+ {[%clk
0:00:57.7]} 36. Kg3 {[%clk 0:00:07.9]} 36... Rc3+ {[%clk 0:00:57.2]} 37. Kh2
{[%clk 0:00:08.5]} 37... Qh4+ {[%clk 0:00:56.8]} 38. Kg2 {[%clk 0:00:06.7]}
38... Qg3+ {[%clk 0:00:49]} 39. Kh1 {[%clk 0:00:06.5]} 39... Rc2 {[%clk
0:00:41.8]} 40. Rd1 {[%clk 0:00:01.6]} 40... Qh2# {[%clk 0:00:39.5]} 0-1

[Event "*** Titled Tuesday Blitz"]
[Site "Chess.com"]
[Date "2020.10.20"]
[Round "8"]
[White "aloe_normansen"]
[Black "zajka-molotok"]
[Result "1-0"]
[WhiteElo "2368"]
[BlackElo "2482"]
[TimeControl "180+1"]
[EndTime "11:36:40 PDT"]
[Termination "aloe_normansen won by resignation"]

1. e4 {[%clk 0:03:00.9]} 1... Nc6 {[%clk 0:02:57]} 2. Nf3 {[%clk 0:03:00]} 2...
d6 {[%clk 0:02:56.8]} 3. d4 {[%clk 0:02:59]} 3... Bg4 {[%clk 0:02:55.7]} 4. Be2
{[%clk 0:02:56]} 4... e5 {[%clk 0:02:53.6]} 5. d5 {[%clk 0:02:39.2]} 5... Nce7
{[%clk 0:02:41.1]} 6. h3 {[%clk 0:02:37.5]} 6... Bd7 {[%clk 0:02:39.1]} 7. c4
{[%clk 0:02:36.2]} 7... Nf6 {[%clk 0:02:37.5]} 8. Nc3 {[%clk 0:02:35.5]} 8...
Ng6 {[%clk 0:02:37.8]} 9. O-O {[%clk 0:02:26.1]} 9... Be7 {[%clk 0:02:37.1]} 10.
Be3 {[%clk 0:02:24.3]} 10... O-O {[%clk 0:02:32.6]} 11. Nd2 {[%clk 0:02:23.7]}
11... Nf4 {[%clk 0:02:29.8]} 12. Bxf4 {[%clk 0:02:16.3]} 12... exf4 {[%clk
0:02:30.7]} 13. Bd3 {[%clk 0:02:14.6]} 13... Ne8 {[%clk 0:02:14.6]} 14. Qf3
{[%clk 0:02:08.7]} 14... Bg5 {[%clk 0:02:13.7]} 15. Rfe1 {[%clk 0:02:01.7]}
15... Qf6 {[%clk 0:02:06.2]} 16. c5 {[%clk 0:01:38.6]} 16... Qh6 {[%clk
0:01:58.3]} 17. e5 {[%clk 0:01:32.4]} 17... dxe5 {[%clk 0:01:37.5]} 18. Rxe5
{[%clk 0:01:33.3]} 18... Nf6 {[%clk 0:01:36.6]} 19. Nde4 {[%clk 0:01:25.2]}
19... Bh4 {[%clk 0:01:29.5]} 20. Nxf6+ {[%clk 0:01:23.6]} 20... Bxf6 {[%clk
0:01:28.3]} 21. Rh5 {[%clk 0:01:22.5]} 21... Bxc3 {[%clk 0:01:11.2]} 22. Rxh6
{[%clk 0:01:18]} 22... Bxb2 {[%clk 0:01:10.7]} 23. Rxh7 {[%clk 0:01:06.5]} 23...
g6 {[%clk 0:01:10.6]} 24. Rb1 {[%clk 0:01:03.5]} 24... Kxh7 {[%clk 0:00:58.7]}
25. Rxb2 {[%clk 0:01:03.1]} 25... b6 {[%clk 0:00:58.1]} 26. c6 {[%clk
0:01:01.8]} 26... Be8 {[%clk 0:00:47.9]} 27. Qxf4 {[%clk 0:01:01.3]} 27... Rc8
{[%clk 0:00:47.9]} 28. Re2 {[%clk 0:01:00.2]} 28... Kg7 {[%clk 0:00:44.1]} 29.
Re7 {[%clk 0:00:57.7]} 29... Rd8 {[%clk 0:00:42.9]} 30. Qe5+ {[%clk 0:00:57.5]}
30... Kg8 {[%clk 0:00:39.6]} 31. Qg5 {[%clk 0:00:46.2]} 31... Rd6 {[%clk
0:00:34.9]} 32. Qe5 {[%clk 0:00:43]} 32... Bxc6 {[%clk 0:00:32.7]} 33. dxc6
{[%clk 0:00:39]} 33... Rxd3 {[%clk 0:00:31.9]} 34. Re8 {[%clk 0:00:39.4]} 34...
Rd6 {[%clk 0:00:25.7]} 35. Qe7 {[%clk 0:00:33.1]} 35... Rxe8 {[%clk 0:00:22.8]}
36. Qxe8+ {[%clk 0:00:34]} 36... Kg7 {[%clk 0:00:23.4]} 37. Qd7 {[%clk
0:00:34.4]} 37... Kf6 {[%clk 0:00:15.9]} 38. Qxd6+ {[%clk 0:00:32.4]} 38... cxd6
{[%clk 0:00:15.5]} 39. c7 {[%clk 0:00:32.8]} 1-0

[Event "*** Titled Tuesday Blitz"]
[Site "Chess.com"]
[Date "2020.10.20"]
[Round "8"]
[White "chessmadara"]
[Black "Grieve72"]
[Result "1-0"]
[WhiteElo "2202"]
[BlackElo "2428"]
[TimeControl "180+1"]
[EndTime "11:36:43 PDT"]
[Termination "chessmadara won by checkmate"]

1. e4 {[%clk 0:03:00.9]} 1... c5 {[%clk 0:02:31.4]} 2. Nf3 {[%clk 0:02:59.3]}
2... e6 {[%clk 0:02:31.3]} 3. d4 {[%clk 0:02:58.5]} 3... cxd4 {[%clk 0:02:32.2]}
4. Nxd4 {[%clk 0:02:59]} 4... Nc6 {[%clk 0:02:32.8]} 5. Nc3 {[%clk 0:02:58.3]}
5... Qc7 {[%clk 0:02:32.1]} 6. Be2 {[%clk 0:02:56.4]} 6... a6 {[%clk 0:02:31.9]}
7. O-O {[%clk 0:02:55]} 7... Nf6 {[%clk 0:02:32.3]} 8. Be3 {[%clk 0:02:53.8]}
8... Bb4 {[%clk 0:02:32.7]} 9. Na4 {[%clk 0:02:52.6]} 9... Be7 {[%clk
0:02:32.9]} 10. Nxc6 {[%clk 0:02:51.5]} 10... bxc6 {[%clk 0:02:33.8]} 11. Nb6
{[%clk 0:02:51]} 11... Rb8 {[%clk 0:02:34.4]} 12. Nxc8 {[%clk 0:02:51.5]} 12...
Qxc8 {[%clk 0:02:35.3]} 13. e5 {[%clk 0:02:51.2]} 13... Nd5 {[%clk 0:02:34.5]}
14. Bc1 {[%clk 0:02:51.7]} 14... O-O {[%clk 0:02:29]} 15. c4 {[%clk 0:02:48.7]}
15... Nc7 {[%clk 0:02:15.5]} 16. Bd3 {[%clk 0:02:44.9]} 16... f5 {[%clk
0:02:05.6]} 17. exf6 {[%clk 0:02:43.8]} 17... Bxf6 {[%clk 0:02:03.7]} 18. Rb1
{[%clk 0:02:41.3]} 18... d5 {[%clk 0:02:00.1]} 19. cxd5 {[%clk 0:02:40.7]} 19...
cxd5 {[%clk 0:01:51.9]} 20. b3 {[%clk 0:02:39.3]} 20... e5 {[%clk 0:01:49]} 21.
Ba3 {[%clk 0:02:32.4]} 21... Re8 {[%clk 0:01:42.1]} 22. Rc1 {[%clk 0:02:30.5]}
22... Qd7 {[%clk 0:01:41.8]} 23. Qh5 {[%clk 0:02:18.4]} 23... g6 {[%clk
0:01:39.4]} 24. Qf3 {[%clk 0:01:50.6]} 24... Bg5 {[%clk 0:01:27.8]} 25. Rc2
{[%clk 0:01:49.1]} 25... e4 {[%clk 0:01:14.3]} 26. Qg3 {[%clk 0:01:49]} 26...
Ne6 {[%clk 0:01:14.4]} 27. Be2 {[%clk 0:01:37.2]} 27... d4 {[%clk 0:00:53]} 28.
Bc4 {[%clk 0:01:29.3]} 28... Bf6 {[%clk 0:00:42]} 29. Bxe6+ {[%clk 0:01:17]}
29... Qxe6 {[%clk 0:00:40.3]} 30. Rfc1 {[%clk 0:01:14.3]} 30... d3 {[%clk
0:00:33.5]} 31. Rc7 {[%clk 0:01:10.4]} 31... Be5 {[%clk 0:00:23.8]} 32. Qh4
{[%clk 0:01:07]} 32... Bxc7 {[%clk 0:00:16.1]} 33. Rxc7 {[%clk 0:01:07.9]} 33...
h5 {[%clk 0:00:15.4]} 34. Bb2 {[%clk 0:01:03.1]} 34... Rbd8 {[%clk 0:00:03]} 35.
Rg7+ {[%clk 0:00:58.3]} 35... Kf8 {[%clk 0:00:03.5]} 36. Qf4+ {[%clk 0:00:42.7]}
36... Qf5 {[%clk 0:00:04]} 37. Qh6 {[%clk 0:00:42.5]} 37... Qf7 {[%clk
0:00:04.6]} 38. Ba3+ {[%clk 0:00:37.1]} 38... Re7 {[%clk 0:00:04.1]} 39. Qh8+
{[%clk 0:00:35.6]} 39... Qg8 {[%clk 0:00:03.6]} 40. Qxg8# {[%clk 0:00:35.7]} 1-0

[Event "*** Titled Tuesday Blitz"]
[Site "Chess.com"]
[Date "2020.10.20"]
[Round "8"]
[White "UmbertoConcelli"]
[Black "harvsp123"]
[Result "1-0"]
[WhiteElo "2722"]
[BlackElo "2480"]
[TimeControl "180+1"]
[EndTime "11:36:44 PDT"]
[Termination "UmbertoConcelli won by resignation"]

1. Nf3 {[%clk 0:03:00.9]} 1... g6 {[%clk 0:02:58.3]} 2. d4 {[%clk 0:03:00.2]}
2... Bg7 {[%clk 0:02:58.4]} 3. c4 {[%clk 0:02:58.2]} 3... d6 {[%clk 0:02:54.7]}
4. g3 {[%clk 0:02:57.6]} 4... Nf6 {[%clk 0:02:53.6]} 5. Bg2 {[%clk 0:02:57.1]}
5... O-O {[%clk 0:02:54.2]} 6. Nc3 {[%clk 0:02:57.5]} 6... c5 {[%clk 0:02:52.1]}
7. d5 {[%clk 0:02:56.7]} 7... e6 {[%clk 0:02:51.4]} 8. O-O {[%clk 0:02:56.1]}
8... exd5 {[%clk 0:02:51.6]} 9. cxd5 {[%clk 0:02:57]} 9... Re8 {[%clk
0:02:51.1]} 10. Bf4 {[%clk 0:02:55.4]} 10... Bf5 {[%clk 0:02:28.9]} 11. Nb5
{[%clk 0:02:39.6]} 11... Bf8 {[%clk 0:02:11.8]} 12. Nd2 {[%clk 0:02:35.3]} 12...
Nh5 {[%clk 0:02:08.2]} 13. Nc3 {[%clk 0:02:20.1]} 13... Nxf4 {[%clk 0:02:04.6]}
14. gxf4 {[%clk 0:02:21]} 14... Bh6 {[%clk 0:02:02.5]} 15. e3 {[%clk 0:02:20.6]}
15... b5 {[%clk 0:02:00.9]} 16. Nxb5 {[%clk 0:02:15.5]} 16... Bd3 {[%clk
0:02:00.7]} 17. Nc3 {[%clk 0:02:13.4]} 17... Bxf1 {[%clk 0:02:00.2]} 18. Bxf1
{[%clk 0:02:14.3]} 18... Nd7 {[%clk 0:01:58.6]} 19. a4 {[%clk 0:02:13]} 19...
Qh4 {[%clk 0:01:51.2]} 20. Qf3 {[%clk 0:02:10]} 20... Nf6 {[%clk 0:01:48]} 21.
Qg3 {[%clk 0:02:07.9]} 21... Qh5 {[%clk 0:01:38.5]} 22. Bg2 {[%clk 0:01:53.6]}
22... Rab8 {[%clk 0:01:32.8]} 23. Nc4 {[%clk 0:01:50.1]} 23... Bf8 {[%clk
0:01:27.8]} 24. Qf3 {[%clk 0:01:32.3]} 24... Qxf3 {[%clk 0:01:18.1]} 25. Bxf3
{[%clk 0:01:33.2]} 25... Rb4 {[%clk 0:01:15.5]} 26. Be2 {[%clk 0:01:32.7]} 26...
a6 {[%clk 0:01:07.1]} 27. a5 {[%clk 0:01:31.3]} 27... Ne4 {[%clk 0:00:59.7]} 28.
Na4 {[%clk 0:01:19.4]} 28... Nf6 {[%clk 0:00:52.9]} 29. Ncb6 {[%clk 0:01:14.5]}
29... Rxf4 {[%clk 0:00:39]} 30. Bxa6 {[%clk 0:01:11.2]} 30... Rg4+ {[%clk
0:00:38.7]} 31. Kf1 {[%clk 0:01:09.9]} 31... Rh4 {[%clk 0:00:33.8]} 32. Bb5
{[%clk 0:01:06.6]} 32... Rd8 {[%clk 0:00:18.4]} 33. a6 {[%clk 0:01:05.3]} 33...
Rxh2 {[%clk 0:00:17.8]} 34. Kg1 {[%clk 0:01:02.6]} 34... Rh4 {[%clk 0:00:10.7]}
35. a7 {[%clk 0:01:01.5]} 35... Rg4+ {[%clk 0:00:09.1]} 36. Kf1 {[%clk
0:01:00.8]} 36... Rh4 {[%clk 0:00:09]} 37. Ke2 {[%clk 0:01:00.8]} 37... Ng4
{[%clk 0:00:07.4]} 38. Bd7 {[%clk 0:00:49.3]} 38... f5 {[%clk 0:00:05.4]} 39.
Bc8 {[%clk 0:00:48.6]} 39... Rh2 {[%clk 0:00:04]} 40. Rf1 {[%clk 0:00:47.2]}
40... Nf6 {[%clk 0:00:01.9]} 41. a8=Q {[%clk 0:00:45.4]} 41... Ne4 {[%clk
0:00:02.8]} 42. Be6+ {[%clk 0:00:45.2]} 42... Kh8 {[%clk 0:00:03.3]} 43. Qxd8
{[%clk 0:00:46.1]} 1-0

[Event "*** Titled Tuesday Blitz"]
[Site "Chess.com"]
[Date "2020.10.20"]
[Round "8"]
[White "Matols"]
[Black "Makswolf200817"]
[Result "0-1"]
[WhiteElo "2266"]
[BlackElo "2453"]
[TimeControl "180+1"]
[EndTime "11:36:44 PDT"]
[Termination "Makswolf200817 won by resignation"]

1. d4 {[%clk 0:03:00.9]} 1... d5 {[%clk 0:02:58.2]} 2. c4 {[%clk 0:03:00.2]}
2... e6 {[%clk 0:02:58.1]} 3. Nf3 {[%clk 0:02:59.8]} 3... c6 {[%clk 0:02:58]} 4.
e3 {[%clk 0:02:58.6]} 4... Nf6 {[%clk 0:02:56.4]} 5. b3 {[%clk 0:02:53.5]} 5...
Bb4+ {[%clk 0:02:53.4]} 6. Bd2 {[%clk 0:02:51.4]} 6... Be7 {[%clk 0:02:53.5]} 7.
Bd3 {[%clk 0:02:50.1]} 7... O-O {[%clk 0:02:53.1]} 8. O-O {[%clk 0:02:49.9]}
8... Ne4 {[%clk 0:02:53]} 9. Qc2 {[%clk 0:02:46.5]} 9... f5 {[%clk 0:02:52.2]}
10. Ne5 {[%clk 0:02:45.3]} 10... Nd7 {[%clk 0:02:49.9]} 11. f3 {[%clk
0:02:39.3]} 11... Nxe5 {[%clk 0:02:46.5]} 12. dxe5 {[%clk 0:02:33.6]} 12... Nxd2
{[%clk 0:02:40.3]} 13. Nxd2 {[%clk 0:02:29.2]} 13... Bc5 {[%clk 0:02:38.5]} 14.
Rfe1 {[%clk 0:02:25.8]} 14... Qg5 {[%clk 0:02:23.8]} 15. Nf1 {[%clk 0:02:12.3]}
15... f4 {[%clk 0:02:20.6]} 16. cxd5 {[%clk 0:02:08.4]} 16... Bb6 {[%clk
0:02:14.3]} 17. Bxh7+ {[%clk 0:01:54.3]} 17... Kh8 {[%clk 0:02:13.4]} 18. dxc6
{[%clk 0:01:46.3]} 18... fxe3 {[%clk 0:02:12]} 19. Kh1 {[%clk 0:01:32.8]} 19...
Qxe5 {[%clk 0:02:00.2]} 20. Be4 {[%clk 0:01:23.1]} 20... bxc6 {[%clk 0:01:53.3]}
21. Rad1 {[%clk 0:00:57.2]} 21... Qg5 {[%clk 0:01:32.1]} 22. Qxc6 {[%clk
0:00:34.9]} 22... Ba6 {[%clk 0:01:30]} 23. Ng3 {[%clk 0:00:24.8]} 23... Rae8
{[%clk 0:00:59.7]} 24. Rd7 {[%clk 0:00:20.9]} 24... Qh4 {[%clk 0:00:53.6]} 25.
Qd6 {[%clk 0:00:17.6]} 25... e2 {[%clk 0:00:46.4]} 26. Qe5 {[%clk 0:00:16.6]}
26... Rf6 {[%clk 0:00:36.3]} 27. Qh5+ {[%clk 0:00:14.9]} 27... Qxh5 {[%clk
0:00:36.3]} 28. Nxh5 {[%clk 0:00:15]} 28... Rh6 {[%clk 0:00:36.3]} 29. Nxg7
{[%clk 0:00:14.1]} 29... Rc8 {[%clk 0:00:36.1]} 30. h3 {[%clk 0:00:10.7]} 30...
Ba5 {[%clk 0:00:33.7]} 31. Nxe6 {[%clk 0:00:09]} 31... Bxe1 {[%clk 0:00:31.7]}
32. Ng5 {[%clk 0:00:08.2]} 32... Rf8 {[%clk 0:00:24.4]} 33. Nf7+ {[%clk
0:00:07.5]} 33... Rxf7 {[%clk 0:00:24.8]} 34. Rxf7 {[%clk 0:00:07.8]} 34... Bd2
{[%clk 0:00:25.3]} 0-1

[Event "*** Titled Tuesday Blitz"]
[Site "Chess.com"]
[Date "2020.10.20"]
[Round "8"]
[White "Xeniya2005"]
[Black "mshuaau0"]
[Result "1-0"]
[WhiteElo "2391"]
[BlackElo "2215"]
[TimeControl "180+1"]
[EndTime "11:36:46 PDT"]
[Termination "Xeniya2005 won by resignation"]

1. e4 {[%clk 0:03:00.9]} 1... e5 {[%clk 0:02:58.9]} 2. Nf3 {[%clk 0:02:59.8]}
2... Nc6 {[%clk 0:02:58.8]} 3. Nc3 {[%clk 0:02:58.9]} 3... Nf6 {[%clk 0:02:58]}
4. Bb5 {[%clk 0:02:57.2]} 4... Bb4 {[%clk 0:02:55.8]} 5. d3 {[%clk 0:02:53.7]}
5... d6 {[%clk 0:02:53.4]} 6. O-O {[%clk 0:02:52]} 6... Bxc3 {[%clk 0:02:51.7]}
7. bxc3 {[%clk 0:02:50.4]} 7... O-O {[%clk 0:02:51.7]} 8. Bg5 {[%clk 0:02:48]}
8... Qe7 {[%clk 0:02:40.5]} 9. Re1 {[%clk 0:02:45.9]} 9... Nd8 {[%clk
0:02:36.4]} 10. d4 {[%clk 0:02:43]} 10... c6 {[%clk 0:02:35.9]} 11. Ba4 {[%clk
0:02:39.9]} 11... Bg4 {[%clk 0:02:35.3]} 12. h3 {[%clk 0:02:35.7]} 12... Bxf3
{[%clk 0:02:35]} 13. Qxf3 {[%clk 0:02:33.7]} 13... Ne6 {[%clk 0:02:32.4]} 14.
Be3 {[%clk 0:02:32.6]} 14... Nd7 {[%clk 0:02:21]} 15. Bb3 {[%clk 0:02:26.7]}
15... Kh8 {[%clk 0:02:19.6]} 16. Rad1 {[%clk 0:02:22.5]} 16... a5 {[%clk
0:02:17.1]} 17. a4 {[%clk 0:02:18.6]} 17... b5 {[%clk 0:02:16.3]} 18. Qg3 {[%clk
0:02:14.5]} 18... Rab8 {[%clk 0:01:42]} 19. f4 {[%clk 0:01:59.5]} 19... exf4
{[%clk 0:01:39]} 20. Bxf4 {[%clk 0:01:57.8]} 20... Nxf4 {[%clk 0:01:38.6]} 21.
Qxf4 {[%clk 0:01:58.7]} 21... b4 {[%clk 0:01:30.9]} 22. cxb4 {[%clk 0:01:54.2]}
22... Rxb4 {[%clk 0:01:27.6]} 23. Qf2 {[%clk 0:01:44]} 23... c5 {[%clk
0:01:26.9]} 24. Bd5 {[%clk 0:01:29.5]} 24... Rxa4 {[%clk 0:01:19.8]} 25. dxc5
{[%clk 0:01:19]} 25... dxc5 {[%clk 0:01:07.5]} 26. Ra1 {[%clk 0:01:11.5]} 26...
Rxa1 {[%clk 0:01:00.8]} 27. Rxa1 {[%clk 0:01:09.3]} 27... Qd8 {[%clk 0:00:49.8]}
28. Qd2 {[%clk 0:01:06.8]} 28... Nf6 {[%clk 0:00:44.5]} 29. Qxa5 {[%clk
0:01:03]} 29... Nxd5 {[%clk 0:00:37.7]} 30. Qxd8 {[%clk 0:01:01.4]} 30... Rxd8
{[%clk 0:00:38.2]} 31. exd5 {[%clk 0:01:01.4]} 31... g6 {[%clk 0:00:35.3]} 32.
c4 {[%clk 0:01:00.6]} 32... Kg7 {[%clk 0:00:35.1]} 33. Ra6 {[%clk 0:00:59.6]}
33... Rb8 {[%clk 0:00:32.5]} 34. Rc6 {[%clk 0:00:58.6]} 34... Rb1+ {[%clk
0:00:28]} 35. Kh2 {[%clk 0:00:57.3]} 35... h5 {[%clk 0:00:26.8]} 36. Rxc5 {[%clk
0:00:56.5]} 36... Kf6 {[%clk 0:00:27.1]} 37. Rc7 {[%clk 0:00:55.5]} 37... h4
{[%clk 0:00:26.4]} 38. d6 {[%clk 0:00:51.6]} 38... Ke6 {[%clk 0:00:24.9]} 39. c5
{[%clk 0:00:51.3]} 39... Rc1 {[%clk 0:00:23.4]} 40. d7 {[%clk 0:00:49]} 40...
Ke7 {[%clk 0:00:20.9]} 41. c6 {[%clk 0:00:47.5]} 41... f5 {[%clk 0:00:11.7]} 42.
Rc8 {[%clk 0:00:47.2]} 42... Rd1 {[%clk 0:00:11.5]} 43. Re8+ {[%clk 0:00:46.8]}
43... Kf7 {[%clk 0:00:10.5]} 44. d8=Q {[%clk 0:00:47.7]} 1-0

[Event "*** Titled Tuesday Blitz"]
[Site "Chess.com"]
[Date "2020.10.20"]
[Round "8"]
[White "Zmof"]
[Black "Playgood28"]
[Result "0-1"]
[WhiteElo "2164"]
[BlackElo "2284"]
[TimeControl "180+1"]
[EndTime "11:36:47 PDT"]
[Termination "Playgood28 won by checkmate"]

1. e4 {[%clk 0:03:00.9]} 1... e5 {[%clk 0:02:59.6]} 2. Bc4 {[%clk 0:02:55.6]}
2... d6 {[%clk 0:02:59]} 3. Nf3 {[%clk 0:02:55]} 3... Be7 {[%clk 0:02:57.7]} 4.
O-O {[%clk 0:02:53]} 4... Nf6 {[%clk 0:02:56.1]} 5. d3 {[%clk 0:02:51.5]} 5...
O-O {[%clk 0:02:53.6]} 6. Re1 {[%clk 0:02:49.3]} 6... c6 {[%clk 0:02:53.1]} 7.
Bb3 {[%clk 0:02:46]} 7... a5 {[%clk 0:02:52.6]} 8. c3 {[%clk 0:02:45.3]} 8... b5
{[%clk 0:02:50.7]} 9. a4 {[%clk 0:02:44.2]} 9... b4 {[%clk 0:02:49.1]} 10. Nbd2
{[%clk 0:02:43]} 10... Na6 {[%clk 0:02:45.1]} 11. d4 {[%clk 0:02:34.9]} 11...
bxc3 {[%clk 0:02:35]} 12. bxc3 {[%clk 0:02:33.7]} 12... exd4 {[%clk 0:02:34.9]}
13. cxd4 {[%clk 0:02:33.4]} 13... Nb4 {[%clk 0:02:34.6]} 14. e5 {[%clk
0:02:07.1]} 14... dxe5 {[%clk 0:02:29.7]} 15. dxe5 {[%clk 0:02:06.7]} 15... Nfd5
{[%clk 0:02:28.1]} 16. Ne4 {[%clk 0:01:43]} 16... Bf5 {[%clk 0:02:19.2]} 17. Bb2
{[%clk 0:01:36.1]} 17... Rb8 {[%clk 0:02:01.3]} 18. Nd4 {[%clk 0:01:34.8]} 18...
Bxe4 {[%clk 0:01:23.9]} 19. Rxe4 {[%clk 0:01:34.2]} 19... Qd7 {[%clk 0:01:14.7]}
20. Rc1 {[%clk 0:01:30.8]} 20... Rfd8 {[%clk 0:01:10.2]} 21. Ba1 {[%clk
0:01:24.4]} 21... Bf8 {[%clk 0:00:58.4]} 22. Qf3 {[%clk 0:01:18.6]} 22... Rb7
{[%clk 0:00:47.8]} 23. Nf5 {[%clk 0:01:17.8]} 23... Na6 {[%clk 0:00:27.1]} 24.
Bxd5 {[%clk 0:01:03.9]} 24... cxd5 {[%clk 0:00:24.2]} 25. Rg4 {[%clk 0:00:52]}
25... g6 {[%clk 0:00:23.3]} 26. Nd6 {[%clk 0:00:43.4]} 26... Rb4 {[%clk
0:00:20.3]} 27. Rxb4 {[%clk 0:00:23.5]} 27... Nxb4 {[%clk 0:00:19.3]} 28. Qf6
{[%clk 0:00:19.5]} 28... Be7 {[%clk 0:00:16.7]} 29. Qf4 {[%clk 0:00:15.4]} 29...
Qe6 {[%clk 0:00:16]} 30. Bd4 {[%clk 0:00:14.3]} 30... Nd3 {[%clk 0:00:14.6]} 31.
Qe3 {[%clk 0:00:11.3]} 31... Nxc1 {[%clk 0:00:14.8]} 32. Qxc1 {[%clk 0:00:11.9]}
32... Bxd6 {[%clk 0:00:14.3]} 33. exd6 {[%clk 0:00:11.6]} 33... Rxd6 {[%clk
0:00:13.1]} 34. Qc7 {[%clk 0:00:10.5]} 34... Qe1# {[%clk 0:00:10.6]} 0-1

[Event "*** Titled Tuesday Blitz"]
[Site "Chess.com"]
[Date "2020.10.20"]
[Round "8"]
[White "ArjunErigaisi2003"]
[Black "Sibelephant"]
[Result "0-1"]
[WhiteElo "3042"]
[BlackElo "3106"]
[TimeControl "180+1"]
[EndTime "11:36:48 PDT"]
[Termination "Sibelephant won by resignation"]

1. Nf3 {[%clk 0:03:00.9]} 1... d5 {[%clk 0:02:59.4]} 2. d4 {[%clk 0:02:59.6]}
2... Bf5 {[%clk 0:02:59.3]} 3. Bf4 {[%clk 0:02:58.6]} 3... e6 {[%clk 0:02:59.4]}
4. e3 {[%clk 0:02:58.7]} 4... Bd6 {[%clk 0:02:59.3]} 5. Bg3 {[%clk 0:02:58]}
5... Nf6 {[%clk 0:02:59]} 6. c4 {[%clk 0:02:57.8]} 6... O-O {[%clk 0:02:58.4]}
7. Nc3 {[%clk 0:02:57.3]} 7... c6 {[%clk 0:02:57.3]} 8. Bd3 {[%clk 0:02:55]}
8... Bg4 {[%clk 0:02:53.7]} 9. O-O {[%clk 0:02:51.9]} 9... Bxg3 {[%clk
0:02:51.9]} 10. hxg3 {[%clk 0:02:52.8]} 10... Nbd7 {[%clk 0:02:52.3]} 11. Qb3
{[%clk 0:02:51.7]} 11... Rb8 {[%clk 0:02:52.1]} 12. Rfe1 {[%clk 0:02:27.8]}
12... Re8 {[%clk 0:02:43.4]} 13. a3 {[%clk 0:02:15.3]} 13... a6 {[%clk 0:02:29]}
14. Rac1 {[%clk 0:02:14.3]} 14... dxc4 {[%clk 0:02:18.5]} 15. Bxc4 {[%clk
0:02:00.3]} 15... b5 {[%clk 0:02:11.5]} 16. Bf1 {[%clk 0:01:58.3]} 16... c5
{[%clk 0:02:09.5]} 17. dxc5 {[%clk 0:01:56.6]} 17... Nxc5 {[%clk 0:02:01.6]} 18.
Qb4 {[%clk 0:01:56.2]} 18... Bxf3 {[%clk 0:02:02]} 19. Qxc5 {[%clk 0:01:29.9]}
19... Ba8 {[%clk 0:01:55]} 20. Red1 {[%clk 0:01:28.9]} 20... Qc8 {[%clk
0:01:53.7]} 21. Qxc8 {[%clk 0:00:39.1]} 21... Rexc8 {[%clk 0:01:53.6]} 22. a4
{[%clk 0:00:39.7]} 22... b4 {[%clk 0:01:45]} 23. Ne2 {[%clk 0:00:40.2]} 23...
Bc6 {[%clk 0:01:26.2]} 24. Nd4 {[%clk 0:00:29.3]} 24... Bxa4 {[%clk 0:01:24.9]}
25. Rxc8+ {[%clk 0:00:25.5]} 25... Rxc8 {[%clk 0:01:24.9]} 26. Ra1 {[%clk
0:00:26.4]} 26... Bd7 {[%clk 0:01:22.5]} 27. Rxa6 {[%clk 0:00:19.7]} 27... Kf8
{[%clk 0:01:22.8]} 28. Ra1 {[%clk 0:00:17.6]} 28... g6 {[%clk 0:01:12]} 29. Bb5
{[%clk 0:00:17.7]} 29... Bxb5 {[%clk 0:01:09.7]} 30. Nxb5 {[%clk 0:00:18.6]}
30... Rc2 {[%clk 0:01:09.2]} 31. b3 {[%clk 0:00:12.7]} 31... Ne4 {[%clk
0:01:05.5]} 32. f3 {[%clk 0:00:05.9]} 32... Nxg3 {[%clk 0:01:05.1]} 33. Ra4
{[%clk 0:00:05.8]} 33... Rc1+ {[%clk 0:00:44.3]} 34. Kf2 {[%clk 0:00:05.1]}
34... Nh1+ {[%clk 0:00:44.7]} 35. Ke2 {[%clk 0:00:05.7]} 35... h5 {[%clk
0:00:44]} 36. Rxb4 {[%clk 0:00:05.2]} 36... Rg1 {[%clk 0:00:44.6]} 37. g4 {[%clk
0:00:03.4]} 37... h4 {[%clk 0:00:44.8]} 38. g5 {[%clk 0:00:04]} 38... Rg2+
{[%clk 0:00:42.8]} 39. Kf1 {[%clk 0:00:03.5]} 39... h3 {[%clk 0:00:43.2]} 40.
Rg4 {[%clk 0:00:02.2]} 40... Ng3+ {[%clk 0:00:41.8]} 41. Ke1 {[%clk 0:00:02.8]}
41... h2 {[%clk 0:00:41.1]} 0-1